fUSD/lending_fUSD_20240708
["ID","MTS","AMOUNT","RATE_DAILY","PERIOD"]
[331458622,1720424871469,-500.0,0.00034038,32]
[331458623,1720424871503,-1939.05,0.00034038,46]
[331458624,1720424871537,-500.0,0.00034038,36]
[331458625,1720424871572,-1829.92,0.00034038,34]
[331458626,1720424871608,-1436.24,0.00034038,32]
[331458627,1720424871642,-500.0,0.00034038,33]
[331458628,1720424871675,-1829.92,0.00034038,35]
[331458629,1720424871711,-1939.05,0.00034038,47]
[331458630,1720424871746,-500.0,0.00034038,30]
[331458631,1720424871780,-744.56,0.00034038,34]
[331458632,1720424871814,-1436.24,0.00034038,33]
[331458633,1720424871847,-500.0,0.00034038,34]
[331458634,1720424871880,-1829.92,0.00034038,36]
[331458635,1720424871918,-1939.05,0.00034038,48]
[331458636,1720424871951,-500.0,0.00034038,31]
[331458637,1720424871989,-500.0,0.00034038,35]
[331458638,1720424872027,-744.56,0.00034038,35]
[331458639,1720424872059,-1829.92,0.00034038,37]
[331458640,1720424872098,-500.0,0.00034038,32]
[331458641,1720424872133,-500.0,0.00034038,36]
[331458642,1720424872167,-744.56,0.00034038,36]
[331458643,1720424872202,-1829.92,0.00034038,38]
[331458644,1720424872238,-1436.24,0.00034038,34]
[331458645,1720424872271,-500.0,0.00034038,37]
[331458646,1720424872305,-1939.05,0.00034038,49]
[331458647,1720424872339,-744.56,0.00034038,37]
[331458648,1720424872375,-1829.92,0.00034038,39]
[331458649,1720424872410,-1436.24,0.00034038,35]
[331458650,1720424872444,-500.0,0.00034038,38]
[331458651,1720424872480,-744.56,0.00034038,38]
[331458652,1720424872514,-500.0,0.00034038,33]
[331458653,1720424872548,-1939.05,0.00034038,50]
[331458654,1720424872583,-1829.92,0.00034038,40]
[331458655,1720424872617,-1436.24,0.00034038,36]
[331458656,1720424872652,-744.56,0.00034038,39]
[331458657,1720424872686,-500.0,0.00034038,30]
[331458658,1720424872721,-1939.05,0.00034038,51]
[331458659,1720424872755,-500.0,0.00034038,34]
[331458660,1720424872788,-1829.92,0.00034038,41]
[331458661,1720424872822,-500.0,0.00034038,30]
[331458662,1720424872855,-1436.24,0.00034038,37]
[331458663,1720424872888,-183.98698533,0.00034038,31]
[331458664,1720424872925,-1939.05,0.00034038,52]
[331458665,1720424872959,-744.56,0.00034038,40]
[331458666,1720424872997,-500.0,0.00034038,35]
[331458667,1720424873030,-1829.92,0.00034038,42]
[331458668,1720424873063,-500.0,0.00034038,31]
[331458669,1720424873097,-500.0,0.00034038,39]
[331458670,1720424873130,-1939.27619143,0.00034038,53]
[331458671,1720424873163,-500.0,0.00034038,36]
[331458672,1720424873196,-500.0,0.00034038,32]
[331458673,1720424873228,-1829.92,0.00034038,43]
[331458674,1720424873260,-744.56,0.00034038,41]
[331458675,1720424873293,-500.0,0.00034038,40]
[331458676,1720424873326,-500.0,0.00034038,33]
[331458677,1720424873358,-1829.92,0.00034038,44]
[331458678,1720424873392,-500.0,0.00034038,41]
[331458679,1720424873425,-500.0,0.00034038,37]
[331458680,1720424873459,-1829.92,0.00034038,45]
[331458681,1720424873494,-500.0,0.00034038,38]
[331458682,1720424873529,-744.56,0.00034038,42]
[331458683,1720424873563,-500.0,0.00034038,42]
[331458684,1720424873598,-359.05071904,0.00034038,39]
[331458685,1720424873636,-500.0,0.00034038,43]
[331458686,1720424873673,-1829.92,0.00034038,46]
[331458687,1720424873708,-500.0,0.00034038,34]
[331458688,1720424873747,-744.56,0.00034038,43]
[331458689,1720424873785,-527.89737738,0.00034038,44]
[331458690,1720424873820,-1829.92,0.00034038,47]
[331458691,1720424873855,-500.0,0.00034038,35]
[331458692,1720424874112,-744.56,0.00034038,44]
[331458693,1720424874149,-500.0,0.00034038,37]
[331458694,1720424874185,-500.0,0.00034038,36]
[331458695,1720424874220,-1829.92,0.00034038,48]
[331458696,1720424874255,-744.56,0.00034038,45]
[331458697,1720424874290,-1829.92,0.00034038,49]
[331458698,1720424874327,-500.0,0.00034038,37]
[331458699,1720424874364,-500.0,0.00034038,38]
[331458700,1720424874401,-744.56,0.00034038,46]
[331458701,1720424874440,-1829.92,0.00034038,50]
[331458702,1720424874478,-500.0,0.00034038,38]
[331458703,1720424874518,-744.56,0.00034038,47]
[331458704,1720424874555,-1829.92,0.00034038,51]
[331458705,1720424874594,-500.0,0.00034038,39]
[331458706,1720424874632,-744.56,0.00034038,48]
[331458707,1720424874668,-500.0,0.00034038,39]
[331458708,1720424874706,-1829.92,0.00034038,52]
[331458709,1720424874746,-500.0,0.00034038,40]
[331458710,1720424874785,-744.56,0.00034038,49]
[331458711,1720424874824,-500.0,0.00034038,40]
[331458712,1720424874863,-1830.03183539,0.00034038,53]
[331458713,1720424874902,-500.0,0.00034038,41]
[331458714,1720424874944,-744.56,0.00034038,50]
[331458715,1720424874982,-500.0,0.00034038,41]
[331458716,1720424875024,-500.0,0.00034038,42]
[331458717,1720424875067,-744.56,0.00034038,51]
[331458718,1720424875109,-500.0,0.00034038,42]
[331458719,1720424875147,-500.0,0.00034038,43]
[331458720,1720424875185,-500.0,0.00034038,30]
[331458721,1720424875227,-744.56,0.00034038,52]
[331458722,1720424875265,-500.0,0.00034038,43]
[331458723,1720424875302,-744.64626749,0.00034038,53]
[331458724,1720424875339,-500.0,0.00034038,44]
[331458725,1720424875380,-500.0,0.00034038,44]
[331458726,1720424875417,-2099.99,0.00034038,30]
[331458727,1720424875455,-500.0,0.00034038,45]
[331458728,1720424875493,-500.0,0.00034038,45]
[331458729,1720424875531,-2099.99,0.00034038,31]
[331458730,1720424875568,-316.19608992,0.00034038,46]
[331458731,1720424875606,-500.0,0.00034038,46]
[331458732,1720424875643,-2099.99,0.00034038,32]
[331458733,1720424875699,-500.0,0.00034038,47]
[331458734,1720424875738,-2099.99,0.00034038,33]
[331458735,1720424875776,-905.16,0.00034038,30]
[331458736,1720424875813,-905.16,0.00034038,31]
[331458737,1720424875850,-2099.99,0.00034038,34]
[331458738,1720424875886,-1341.84,0.00034038,30]
[331458739,1720424875925,-500.0,0.00034038,48]
[331458740,1720424875962,-2099.99,0.00034038,35]
[331458741,1720424875999,-1341.84,0.00034038,31]
[331458742,1720424876036,-500.0,0.00034038,49]
[331458743,1720424876071,-1341.84,0.00034038,32]
[331458744,1720424876107,-2099.99,0.00034038,36]
[331458745,1720424876142,-500.0,0.00034038,50]
[331458746,1720424876175,-537.94626129,0.00034038,31]
[331458747,1720424876208,-1341.84,0.00034038,33]
[331458748,1720424876244,-2099.99,0.00034038,37]
[331458749,1720424876278,-175.14989822,0.00034038,51]
[331458750,1720424876311,-2099.99,0.00034038,38]
[331458751,1720424876351,-1341.84,0.00034038,34]
[331458752,1720424876386,-2099.99,0.00034038,39]
[331458753,1720424876420,-1341.84,0.00034038,35]
[331458754,1720424876455,-3216.48,0.00034038,30]
[331458755,1720424876488,-2099.99,0.00034038,40]
[331458756,1720424876523,-2099.99,0.00034038,41]
[331458757,1720424876556,-3216.48,0.00034038,31]
[331458758,1720424876591,-2099.99,0.00034038,42]
[331458759,1720424876624,-1436.24,0.00034038,38]
[331458760,1720424876659,-3216.48,0.00034038,32]
[331458761,1720424876694,-2099.99,0.00034038,43]
[331458762,1720424876731,-1436.24,0.00034038,39]
[331458763,1720424876765,-3216.48,0.00034038,33]
[331458764,1720424876800,-2099.99,0.00034038,44]
[331458765,1720424876834,-500.0,0.00034038,30]
[331458766,1720424876868,-976.88,0.00034038,30]
[331458767,1720424876901,-1436.24,0.00034038,40]
[331458768,1720424876936,-3216.48,0.00034038,34]
[331458769,1720424876969,-2099.99,0.00034038,45]
[331458770,1720424877004,-905.16,0.00034038,32]
[331458771,1720424877041,-500.0,0.00034038,31]
[331458772,1720424877073,-976.88,0.00034038,31]
[331458773,1720424877106,-1436.24,0.00034038,41]
[331458774,1720424877138,-2099.99,0.00034038,46]
[331458775,1720424877172,-3216.48,0.00034038,35]
[331458776,1720424877204,-905.16,0.00034038,33]
[331458777,1720424877239,-976.88,0.00034038,32]
[331458778,1720424877276,-1436.24,0.00034038,42]
[331458779,1720424877310,-905.16,0.00034038,34]
[331458780,1720424877345,-3216.48,0.00034038,36]
[331458781,1720424877379,-976.88,0.00034038,33]
[331458782,1720424877415,-1341.84,0.00034038,36]
[331458783,1720424877449,-504.00360629,0.00034038,32]
[331458784,1720424877484,-1436.24,0.00034038,43]
[331458785,1720424877518,-2099.99,0.00034038,47]
[331458786,1720424877552,-905.16,0.00034038,35]
[331458787,1720424877593,-3216.48,0.00034038,37]
[331458788,1720424877629,-976.88,0.00034038,34]
[331458789,1720424877663,-1341.84,0.00034038,37]
[331458790,1720424877697,-1436.24,0.00034038,44]
[331458791,1720424877731,-905.16,0.00034038,36]
[331458792,1720424877765,-3216.48,0.00034038,38]
[331458793,1720424877800,-976.88,0.00034038,35]
[331458794,1720424877834,-1341.84,0.00034038,38]
[331458795,1720424878127,-500.0,0.00034038,30]
[331458796,1720424878166,-1436.24,0.00034038,45]
[331458797,1720424878200,-3216.48,0.00034038,39]
[331458798,1720424878233,-905.16,0.00034038,37]
[331458799,1720424878271,-2099.99,0.00034038,48]
[331458800,1720424878308,-976.88,0.00034038,36]
[331458801,1720424878343,-500.0,0.00034038,31]
[331458802,1720424878377,-1436.24,0.00034038,46]
[331458803,1720424878411,-3216.48,0.00034038,40]
[331458804,1720424878447,-2099.99,0.00034038,49]
[331458805,1720424878480,-905.16,0.00034038,38]
[331458806,1720424878513,-976.88,0.00034038,37]
[331458807,1720424878547,-1341.84,0.00034038,39]
[331458808,1720424878582,-500.0,0.00034038,32]
[331458809,1720424878618,-3216.48,0.00034038,41]
[331458810,1720424878652,-1436.24,0.00034038,47]
[331458811,1720424878685,-976.88,0.00034038,38]
[331458812,1720424878720,-905.16,0.00034038,39]
[331458813,1720424878758,-2099.99,0.00034038,50]
[331458814,1720424878794,-500.0,0.00034038,33]
[331458815,1720424878832,-1341.84,0.00034038,40]
[331458816,1720424878868,-1436.24,0.00034038,48]
[331458817,1720424878904,-976.88,0.00034038,39]
[331458818,1720424878946,-905.16,0.00034038,40]
[331458819,1720424878988,-3216.48,0.00034038,42]
[331458820,1720424879023,-1341.84,0.00034038,41]
[331458821,1720424879058,-500.0,0.00034038,34]
[331458822,1720424879094,-1436.24,0.00034038,49]
[331458823,1720424879129,-905.16,0.00034038,41]
[331458824,1720424879164,-3216.48,0.00034038,43]
[331458825,1720424879197,-976.88,0.00034038,40]
[331458826,1720424879233,-2099.99,0.00034038,51]
[331458827,1720424879266,-500.0,0.00034038,35]
[331458828,1720424879301,-905.16,0.00034038,42]
[331458829,1720424879336,-3216.48,0.00034038,44]
[331458830,1720424879370,-976.88,0.00034038,41]
[331458831,1720424879405,-2099.99,0.00034038,52]
[331458832,1720424879441,-1436.24,0.00034038,50]
[331458833,1720424879474,-500.0,0.00034038,36]
[331458834,1720424879514,-735.58,0.00034038,30]
[331458835,1720424879549,-1341.84,0.00034038,42]
[331458836,1720424879584,-905.16,0.00034038,43]
[331458837,1720424879622,-3216.48,0.00034038,45]
[331458838,1720424879662,-2100.17637787,0.00034038,53]
[331458839,1720424879698,-976.88,0.00034038,42]
[331458840,1720424879735,-500.0,0.00034038,37]
[331458841,1720424879770,-735.58,0.00034038,31]
[331458842,1720424879804,-1436.24,0.00034038,51]
[331458843,1720424879838,-905.16,0.00034038,44]
[331458844,1720424879872,-3216.48,0.00034038,46]
[331458845,1720424879906,-976.88,0.00034038,43]
[331458846,1720424879944,-500.0,0.00034038,38]
[331458847,1720424879981,-735.58,0.00034038,32]
[331458848,1720424880017,-1436.24,0.00034038,52]
[331458849,1720424880053,-3216.48,0.00034038,47]
[331458850,1720424880095,-1341.84,0.00034038,43]
[331458851,1720424880130,-905.16,0.00034038,45]
[331458852,1720424880167,-976.88,0.00034038,44]
[331458853,1720424880202,-500.0,0.00034038,39]
[331458854,1720424880242,-735.58,0.00034038,33]
[331458855,1720424880301,-1436.24192038,0.00034038,53]
[331458856,1720424880344,-3216.48,0.00034038,48]
[331458857,1720424880384,-1341.84,0.00034038,44]
[331458858,1720424880423,-905.16,0.00034038,46]
[331458859,1720424880459,-500.0,0.00034038,40]
[331458860,1720424880495,-976.88,0.00034038,45]
[331458861,1720424880534,-735.58,0.00034038,34]
[331458862,1720424880571,-1341.84,0.00034038,45]
[331458863,1720424880607,-3216.48,0.00034038,49]
[331458864,1720424880642,-905.16,0.00034038,47]
[331458865,1720424880700,-976.88,0.00034038,46]
[331458866,1720424880741,-500.0,0.00034038,41]
[331458867,1720424880776,-735.58,0.00034038,35]
[331458868,1720424880810,-3216.48,0.00034038,50]
[331458869,1720424880844,-1341.84,0.00034038,46]
[331458870,1720424880879,-905.16,0.00034038,48]
[331458871,1720424880913,-976.88,0.00034038,47]
[331458872,1720424880954,-500.0,0.00034038,42]
[331458873,1720424880987,-735.58,0.00034038,36]
[331458874,1720424881024,-3216.48,0.00034038,51]
[331458875,1720424881056,-1341.84,0.00034038,47]
[331458876,1720424881088,-905.16,0.00034038,49]
[331458877,1720424881120,-500.0,0.00034038,43]
[331458878,1720424881152,-976.88,0.00034038,48]
[331458879,1720424881185,-3216.48,0.00034038,52]
[331458880,1720424881218,-1341.84,0.00034038,48]
[331458881,1720424881252,-735.58,0.00034038,37]
[331458882,1720424881288,-500.0,0.00034038,44]
[331458883,1720424881324,-976.88,0.00034038,49]
[331458884,1720424881358,-905.16,0.00034038,50]
[331458885,1720424881393,-500.0,0.00034038,30]
[331458886,1720424881429,-1341.84,0.00034038,49]
[331458887,1720424881464,-3216.55878716,0.00034038,53]
[331458888,1720424881500,-735.58,0.00034038,38]
[331458889,1720424881535,-500.0,0.00034038,45]
[331458890,1720424881570,-976.88,0.00034038,50]
[331458891,1720424881606,-905.16,0.00034038,51]
[331458892,1720424881642,-1341.84,0.00034038,50]
[331458893,1720424881677,-500.0,0.00034038,31]
[331458894,1720424881714,-735.58,0.00034038,39]
[331458895,1720424881754,-302.35,0.00034038,46]
[331458896,1720424881791,-976.88,0.00034038,51]
[331458897,1720424881828,-905.16,0.00034038,52]
[331458898,1720424881862,-1341.84,0.00034038,51]
[331458899,1720424882099,-976.88,0.00034038,52]
[331458900,1720424882137,-905.22061268,0.00034038,53]
[331458901,1720424882172,-735.58,0.00034038,40]
[331458902,1720424882207,-1341.84,0.00034038,52]
[331458903,1720424882242,-500.0,0.00034038,32]
[331458904,1720424882278,-977.01225169,0.00034038,53]
[331458905,1720424882314,-735.58,0.00034038,41]
[331458906,1720424882349,-1341.84857965,0.00034038,53]
[331458907,1720424882384,-500.0,0.00034038,33]
[331458908,1720424882422,-735.58,0.00034038,42]
[331458909,1720424882459,-500.0,0.00034038,34]
[331458910,1720424882502,-735.58,0.00034038,43]
[331458911,1720424882538,-500.0,0.00034038,35]
[331458912,1720424882574,-735.58,0.00034038,44]
[331458913,1720424882610,-500.0,0.00034038,36]
[331458914,1720424882645,-735.58,0.00034038,45]
[331458915,1720424882679,-500.0,0.00034038,37]
[331458916,1720424882712,-1725.89,0.00034038,30]
[331458917,1720424882748,-735.58,0.00034038,46]
[331458918,1720424882786,-981.65,0.00034038,30]
[331458919,1720424882819,-500.0,0.00034038,38]
[331458920,1720424882850,-1725.89,0.00034038,31]
[331458921,1720424882885,-735.58,0.00034038,47]
[331458922,1720424882922,-528.80960901,0.00034038,30]
[331458923,1720424882955,-981.65,0.00034038,31]
[331458924,1720424882992,-500.0,0.00034038,39]
[331458925,1720424883026,-1725.89,0.00034038,32]
[331458926,1720424883062,-735.58,0.00034038,48]
[331458927,1720424883097,-981.65,0.00034038,32]
[331458928,1720424883130,-500.0,0.00034038,40]
[331458929,1720424883166,-735.58,0.00034038,49]
[331458930,1720424883202,-1725.89,0.00034038,33]
[331458931,1720424883239,-981.65,0.00034038,33]
[331458932,1720424883278,-500.0,0.00034038,41]
[331458933,1720424883315,-1725.89,0.00034038,34]
[331458934,1720424883351,-981.65,0.00034038,34]
[331458935,1720424883387,-735.58,0.00034038,50]
[331458936,1720424883423,-478.76103545,0.00034038,42]
[331458937,1720424883458,-1725.89,0.00034038,35]
[331458938,1720424883493,-735.58,0.00034038,51]
[331458939,1720424883528,-1725.89,0.00034038,36]
[331458940,1720424883565,-1522.3,0.00034038,30]
[331458941,1720424883601,-981.65,0.00034038,35]
[331458942,1720424883637,-1725.89,0.00034038,37]
[331458943,1720424883672,-735.58,0.00034038,52]
[331458944,1720424883708,-1522.3,0.00034038,31]
[331458945,1720424883744,-981.65,0.00034038,36]
[331458946,1720424883779,-1725.89,0.00034038,38]
[331458947,1720424883812,-735.6009533,0.00034038,53]
[331458948,1720424883848,-1522.3,0.00034038,32]
[331458949,1720424883882,-981.65,0.00034038,37]
[331458950,1720424883922,-1725.89,0.00034038,39]
[331458951,1720424883963,-1522.3,0.00034038,33]
[331458952,1720424884002,-1725.89,0.00034038,40]
[331458953,1720424884038,-1522.3,0.00034038,34]
[331458954,1720424884073,-3107.51,0.00034038,30]
[331458955,1720424884108,-1522.3,0.00034038,35]
[331458956,1720424884143,-981.65,0.00034038,38]
[331458957,1720424884177,-3107.51,0.00034038,31]
[331458958,1720424884211,-1725.89,0.00034038,41]
[331458959,1720424884245,-1522.3,0.00034038,36]
[331458960,1720424884277,-500.0,0.00034038,30]
[331458961,1720424884312,-981.65,0.00034038,39]
[331458962,1720424884347,-3107.51,0.00034038,32]
[331458963,1720424884382,-1522.3,0.00034038,37]
[331458964,1720424884415,-500.0,0.00034038,31]
[331458965,1720424884451,-3107.51,0.00034038,33]
[331458966,1720424884487,-981.65,0.00034038,40]
[331458967,1720424884522,-1522.3,0.00034038,38]
[331458968,1720424884560,-1725.89,0.00034038,42]
[331458969,1720424884595,-500.0,0.00034038,32]
[331458970,1720424884632,-329.2018073,0.00034038,30]
[331458971,1720424884667,-3107.51,0.00034038,34]
[331458972,1720424884701,-981.65,0.00034038,41]
[331458973,1720424884735,-1522.3,0.00034038,39]
[331458974,1720424884769,-1725.89,0.00034038,43]
[331458975,1720424884803,-444.01806707,0.00034038,33]
[331458976,1720424884837,-3107.51,0.00034038,35]
[331458977,1720424884872,-981.65,0.00034038,42]
[331458978,1720424884906,-1522.3,0.00034038,40]
[331458979,1720424884952,-1725.89,0.00034038,44]
[331458980,1720424884989,-508.6,0.00034038,30]
[331458981,1720424885027,-500.0,0.00034038,30]
[331458982,1720424885061,-1725.89,0.00034038,45]
[331458983,1720424885096,-508.6,0.00034038,31]
[331458984,1720424885130,-3107.51,0.00034038,36]
[331458985,1720424885165,-981.65,0.00034038,43]
[331458986,1720424885200,-500.0,0.00034038,31]
[331458987,1720424885234,-1725.89,0.00034038,46]
[331458988,1720424885269,-508.6,0.00034038,32]
[331458989,1720424885304,-3107.51,0.00034038,37]
[331458990,1720424885340,-981.65,0.00034038,44]
[331458991,1720424885374,-500.0,0.00034038,32]
[331458992,1720424885414,-1725.89,0.00034038,47]
[331458993,1720424885453,-508.6,0.00034038,33]
[331458994,1720424885489,-981.65,0.00034038,45]
[331458995,1720424885526,-1725.89,0.00034038,48]
[331458996,1720424885561,-500.0,0.00034038,33]
[331458997,1720424885596,-508.6,0.00034038,34]
[331458998,1720424885631,-981.65,0.00034038,46]
[331458999,1720424885665,-1725.89,0.00034038,49]
[331459000,1720424885700,-500.0,0.00034038,34]
[331459001,1720424885736,-508.6,0.00034038,35]
[331459002,1720424885770,-981.65,0.00034038,47]
[331459003,1720424886021,-1725.89,0.00034038,50]
[331459004,1720424886059,-500.0,0.00034038,35]
[331459005,1720424886096,-500.84,0.00034038,30]
[331459006,1720424886133,-508.6,0.00034038,36]
[331459007,1720424886170,-981.65,0.00034038,48]
[331459008,1720424886207,-1725.89,0.00034038,51]
[331459009,1720424886243,-500.0,0.00034038,36]
[331459010,1720424886279,-508.6,0.00034038,37]
[331459011,1720424886316,-500.84,0.00034038,31]
[331459012,1720424886353,-1725.89,0.00034038,52]
[331459013,1720424886388,-500.0,0.00034038,37]
[331459014,1720424886422,-500.0,0.00034038,30]
[331459015,1720424886455,-508.6,0.00034038,38]
[331459016,1720424886488,-500.84,0.00034038,32]
[331459017,1720424886523,-981.65,0.00034038,49]
[331459018,1720424886556,-1726.08610839,0.00034038,53]
[331459019,1720424886591,-633.46,0.00034038,30]
[331459020,1720424886626,-240.86348174,0.00034038,38]
[331459021,1720424886663,-508.6,0.00034038,39]
[331459022,1720424886701,-981.65,0.00034038,50]
[331459023,1720424886743,-500.0,0.00034038,31]
[331459024,1720424886780,-500.84,0.00034038,33]
[331459025,1720424886818,-500.0,0.00034038,30]
[331459026,1720424886857,-633.46,0.00034038,31]
[331459027,1720424886897,-508.6,0.00034038,40]
[331459028,1720424886936,-981.65,0.00034038,51]
[331459029,1720424886975,-500.84,0.00034038,34]
[331459030,1720424887018,-500.0,0.00034038,31]
[331459031,1720424887054,-633.46,0.00034038,32]
[331459032,1720424887090,-981.65,0.00034038,52]
[331459033,1720424887126,-508.6,0.00034038,41]
[331459034,1720424887160,-500.84,0.00034038,35]
[331459035,1720424887194,-500.0,0.00034038,32]
[331459036,1720424887232,-500.0,0.00034038,32]
[331459037,1720424887267,-633.46,0.00034038,33]
[331459038,1720424887301,-508.6,0.00034038,42]
[331459039,1720424887337,-981.70464627,0.00034038,53]
[331459040,1720424887373,-500.84,0.00034038,36]
[331459041,1720424887409,-500.0,0.00034038,33]
[331459042,1720424887447,-500.0,0.00034038,33]
[331459043,1720424887486,-633.46,0.00034038,34]
[331459044,1720424887522,-500.0,0.00034038,34]
[331459045,1720424887559,-500.84,0.00034038,37]
[331459046,1720424887594,-500.0,0.00034038,34]
[331459047,1720424887632,-633.46,0.00034038,35]
[331459048,1720424887669,-508.6,0.00034038,43]
[331459049,1720424887705,-500.0,0.00034038,35]
[331459050,1720424887742,-500.84,0.00034038,38]
[331459051,1720424887777,-500.0,0.00034038,35]
[331459052,1720424887812,-633.46,0.00034038,36]
[331459053,1720424887847,-508.6,0.00034038,44]
[331459054,1720424887882,-500.0,0.00034038,36]
[331459055,1720424887917,-500.84,0.00034038,39]
[331459056,1720424887957,-500.0,0.00034038,36]
[331459057,1720424887995,-633.46,0.00034038,37]
[331459058,1720424888036,-508.6,0.00034038,45]
[331459059,1720424888072,-500.0,0.00034038,37]
[331459060,1720424888109,-500.84,0.00034038,40]
[331459061,1720424888145,-500.0,0.00034038,37]
[331459062,1720424888181,-633.46,0.00034038,38]
[331459063,1720424888216,-508.6,0.00034038,46]
[331459064,1720424888252,-236.98566789,0.00034038,38]
[331459065,1720424888290,-500.0,0.00034038,38]
[331459066,1720424888326,-508.6,0.00034038,47]
[331459067,1720424888361,-500.0,0.00034038,39]
[331459068,1720424888395,-500.84,0.00034038,41]
[331459069,1720424888431,-508.6,0.00034038,48]
[331459070,1720424888467,-633.46,0.00034038,39]
[331459071,1720424888504,-500.0,0.00034038,40]
[331459072,1720424888539,-500.84,0.00034038,42]
[331459073,1720424888576,-508.6,0.00034038,49]
[331459074,1720424888612,-500.0,0.00034038,41]
[331459075,1720424888647,-633.46,0.00034038,40]
[331459076,1720424888682,-500.84,0.00034038,43]
[331459077,1720424888717,-500.0,0.00034038,120]
[331459078,1720424888753,-508.6,0.00034038,50]
[331459079,1720424888789,-633.46,0.00034038,41]
[331459080,1720424888824,-500.0,0.00034038,42]
[331459081,1720424888859,-500.84,0.00034038,44]
[331459082,1720424888895,-500.0,0.00034038,120]
[331459083,1720424888930,-508.6,0.00034038,51]
[331459084,1720424888965,-633.46,0.00034038,42]
[331459085,1720424888998,-777.23,0.00034038,30]
[331459086,1720424889033,-500.84,0.00034038,45]
[331459087,1720424889068,-500.0,0.00034038,120]
[331459088,1720424889104,-508.6,0.00034038,52]
[331459089,1720424889138,-633.46,0.00034038,43]
[331459090,1720424889175,-500.0,0.00034038,43]
[331459091,1720424889210,-777.23,0.00034038,31]
[331459092,1720424889245,-500.84,0.00034038,46]
[331459093,1720424889279,-508.6,0.00034038,53]
[331459094,1720424889313,-1522.3,0.00034038,41]
[331459095,1720424889349,-633.46,0.00034038,44]
[331459096,1720424889386,-500.0,0.00034038,44]
[331459097,1720424889423,-777.23,0.00034038,32]
[331459098,1720424889461,-500.84,0.00034038,47]
[331459099,1720424889499,-500.0,0.00034038,45]
[331459100,1720424889537,-501.14524148,0.00034038,30]
[331459101,1720424889576,-633.46,0.00034038,45]
[331459102,1720424889617,-338.15885458,0.00034038,120]
[331459103,1720424889653,-500.84,0.00034038,48]
[331459104,1720424889690,-1522.3,0.00034038,42]
[331459105,1720424889727,-500.0,0.00034038,46]
[331459106,1720424889765,-633.46,0.00034038,46]
[331459107,1720424890012,-500.84,0.00034038,49]
[331459108,1720424890050,-777.23,0.00034038,33]
[331459109,1720424890093,-1522.3,0.00034038,43]
[331459110,1720424890128,-633.46,0.00034038,47]
[331459111,1720424890164,-500.84,0.00034038,50]
[331459112,1720424890207,-777.23,0.00034038,34]
[331459113,1720424890244,-500.0,0.00034038,30]
[331459114,1720424890281,-1522.3,0.00034038,44]
[331459115,1720424890318,-633.46,0.00034038,48]
[331459116,1720424890355,-500.84,0.00034038,51]
[331459117,1720424890391,-777.23,0.00034038,35]
[331459118,1720424890426,-500.0,0.00034038,31]
[331459119,1720424890460,-1522.3,0.00034038,45]
[331459120,1720424890496,-633.46,0.00034038,49]
[331459121,1720424890532,-777.23,0.00034038,36]